Departmental Area,Entity,Payment Date,Expense Type,Expense Area,Supplier Name,Payment Reference,Invoice Distribution Amount,Description,Supplier Type,Expenditure Type
UK Statistics Authority,Office for National Statistics,11-Mar-20,Telecoms,IT Operations,CenturyLink Communications UK Ltd,178087,"30,557.11", Licenses,Large,Programme Expenditure
UK Statistics Authority,Office for National Statistics,12-Mar-20,Exp - Purchase Of Goods/Services - IT Contractual Services,Tech Delivery Data As A Platform,Kainos,178473,"561,079.78", Information Management Services,Large,Programme Expenditure
UK Statistics Authority,Office for National Statistics,16-Mar-20,"ICT Outsourcing, Maintenance And Support",IT Operations,Equiniti Limited,179062,"47,212.80", Information Management Services,Large,Programme Expenditure
UK Statistics Authority,Office for National Statistics,16-Mar-20,Surveys,International Trade And Transactions,Bureau Van Dijk Electronic Publishing,179076,"360,192.00", Information Manangement Services,SME,Programme Expenditure
UK Statistics Authority,Office for National Statistics,17-Mar-20,Exp - Purchase Of Goods/Services - IT Contractual Services,DST Reapportioning,Methods Business & Digital Technology Ltd,179101,"77,889.00", Information Manangement Services,Large,Programme Expenditure
UK Statistics Authority,Office for National Statistics,19-Mar-20,Exp - Purchase Of Goods/Services - IT Contractual Services,Tech Delivery Next Gen IT And Infrastructure,SCC,179372,446.24, Information Manangement Services,Large,Programme Expenditure
UK Statistics Authority,Office for National Statistics,31-Mar-20,Exp - Purchase Of Goods/Services - Training & Development - Professional Membership Fees,Productivity Research And Professional Development,HMRC,30001929,"40,836.00", Information Management Services,Large,Programme Expenditure
UK Statistics Authority,Office for National Statistics,02-Mar-20,"ICT Outsourcing, Maintenance And Support",IT Operations,Equiniti Limited,176863,"94,425.60", Information Manangement Services,Large,Programme Expenditure
UK Statistics Authority,Office for National Statistics,02-Mar-20,Surveys,Beyond 2021 Research And Design,Ipsos MORI,176865,"166,159.20", Statistical Services,Large,Programme Expenditure
UK Statistics Authority,Office for National Statistics,02-Mar-20,Exp - Purchase Of Goods/Services - Contractors,Testing,Certes Computing Ltd,176867,"27,336.54", Information Management Services,SME,Programme Expenditure
UK Statistics Authority,Office for National Statistics,02-Mar-20,Exp - Purchase Of Goods/Services - Contractors,International Trade And Transactions,Certes Computing Ltd,176867,"24,210.14", Information Management Services,SME,Programme Expenditure
UK Statistics Authority,Office for National Statistics,02-Mar-20,Exp - Purchase Of Goods/Services - Contractors,HR Business Partners,Certes Computing Ltd,176867,"10,248.00", Information Management Services,SME,Programme Expenditure
UK Statistics Authority,Office for National Statistics,02-Mar-20,Exp - Purchase Of Goods/Services - Contractors,Security Advisory,Certes Computing Ltd,176867,"8,326.56", Information Management Services,SME,Programme Expenditure
UK Statistics Authority,Office for National Statistics,02-Mar-20,Exp - Purchase Of Goods/Services - Contractors,Strategy And Architecture,Certes Computing Ltd,176867,"14,987.16", Information Management Services,SME,Programme Expenditure
UK Statistics Authority,Office for National Statistics,02-Mar-20,Exp - Purchase Of Goods/Services - Contractors,Tech Delivery Legacy SP,Certes Computing Ltd,176867,"55,283.92", Information Management Services,SME,Programme Expenditure
UK Statistics Authority,Office for National Statistics,02-Mar-20,Exp - Purchase Of Goods/Services - Contractors,IT Applications,Certes Computing Ltd,176867,"16,909.34", Information Management Services,SME,Programme Expenditure
UK Statistics Authority,Office for National Statistics,02-Mar-20,Exp - Purchase Of Goods/Services - Contractors,Digital Delivery,Certes Computing Ltd,176867,"8,313.36", Information Management Services,SME,Programme Expenditure
UK Statistics Authority,Office for National Statistics,02-Mar-20,Exp - Purchase Of Goods/Services - Contractors,Digital Delivery,Certes Computing Ltd,176867,"15,500.23", Information Management Services,SME,Programme Expenditure
UK Statistics Authority,Office for National Statistics,02-Mar-20,Exp - Purchase Of Goods/Services - Contractors,Digital Delivery,Certes Computing Ltd,176867,"6,340.79", Information Management Services,SME,Programme Expenditure
UK Statistics Authority,Office for National Statistics,02-Mar-20,Exp - Purchase Of Goods/Services - Contractors,Digital Delivery,Certes Computing Ltd,176867,"16,733.21", Information Management Services,SME,Programme Expenditure
UK Statistics Authority,Office for National Statistics,02-Mar-20,Exp - Short-Term Contract & Agency Staff - Full Cost,Stakeholder Engagement And Comms,LA International,176868,"3,314.02", Information Management Services,SME,Programme Expenditure
UK Statistics Authority,Office for National Statistics,02-Mar-20,Exp - Purchase Of Goods/Services - Contractors,Testing,LA International,176868,"38,068.78", Information Management Services,SME,Programme Expenditure
UK Statistics Authority,Office for National Statistics,02-Mar-20,Exp - Purchase Of Goods/Services - Contractors,Programme Delivery,LA International,176868,"10,100.70", Information Management Services,SME,Programme Expenditure
UK Statistics Authority,Office for National Statistics,02-Mar-20,Exp - Short-Term Contract & Agency Staff - Full Cost,Digital Publishing,LA International,176868,"2,794.84", Information Management Services,SME,Programme Expenditure
UK Statistics Authority,Office for National Statistics,02-Mar-20,Exp - Purchase Of Goods/Services - Contractors,International Trade And Transactions,LA International,176868,"7,689.24", Information Management Services,SME,Programme Expenditure
UK Statistics Authority,Office for National Statistics,02-Mar-20,Exp - Purchase Of Goods/Services - Contractors,Sustainability And Inequalities,LA International,176868,"9,470.70", Information Management Services,SME,Programme Expenditure
UK Statistics Authority,Office for National Statistics,02-Mar-20,Exp - Purchase Of Goods/Services - Contractors,Security Advisory,LA International,176868,"3,844.62", Information Management Services,SME,Programme Expenditure
UK Statistics Authority,Office for National Statistics,02-Mar-20,Exp - Purchase Of Goods/Services - Contractors,Data Architecture,LA International,176868,"27,668.34", Information Management Services,SME,Programme Expenditure
UK Statistics Authority,Office for National Statistics,02-Mar-20,Exp - Purchase Of Goods/Services - Contractors,Data Architecture,LA International,176868,"14,135.82", Information Management Services,SME,Programme Expenditure
UK Statistics Authority,Office for National Statistics,02-Mar-20,Exp - Purchase Of Goods/Services - Contractors,Tech Delivery SRS,LA International,176868,"9,329.58", Information Management Services,SME,Programme Expenditure
UK Statistics Authority,Office for National Statistics,02-Mar-20,Exp - Purchase Of Goods/Services - Contractors,Tech Delivery Data As A Platform,LA International,176868,"17,223.84", Information Management Services,SME,Programme Expenditure
UK Statistics Authority,Office for National Statistics,02-Mar-20,Exp - Purchase Of Goods/Services - Contractors,Tech Delivery Data As A Platform,LA International,176868,"6,407.76", Information Management Services,SME,Programme Expenditure
UK Statistics Authority,Office for National Statistics,02-Mar-20,Exp - Purchase Of Goods/Services - Contractors,IT Applications,LA International,176868,"32,192.92", Information Management Services,SME,Programme Expenditure
UK Statistics Authority,Office for National Statistics,02-Mar-20,Exp - Purchase Of Goods/Services - Contractors,Digital Delivery,LA International,176868,"3,844.62", Information Management Services,SME,Programme Expenditure
UK Statistics Authority,Office for National Statistics,02-Mar-20,Exp - Purchase Of Goods/Services - Contractors,Digital Delivery,LA International,176868,"21,273.74", Information Management Services,SME,Programme Expenditure
UK Statistics Authority,Office for National Statistics,02-Mar-20,Exp - Purchase Of Goods/Services - Contractors,Digital Delivery,LA International,176868,"14,353.20", Information Management Services,SME,Programme Expenditure
UK Statistics Authority,Office for National Statistics,02-Mar-20,Exp - Purchase Of Goods/Services - Contractors,Digital Delivery,LA International,176868,"25,118.11", Information Management Services,SME,Programme Expenditure
UK Statistics Authority,Office for National Statistics,02-Mar-20,Exp - Purchase Of Goods/Services - Contractors,Data Science Campus,LA International,176868,"14,353.20", Information Management Services,SME,Programme Expenditure
UK Statistics Authority,Office for National Statistics,02-Mar-20,Other Professional Services,Internal Audit,Pricewaterhousecoopers LLP,176871,"42,833.70", Information Management Services,Large,Programme Expenditure
UK Statistics Authority,Office for National Statistics,02-Mar-20,Capital Major Works >25K,Property Services,Paramount Office Interiors Ltd,176872,"54,755.81", Major Works Newport,SME,Programme Expenditure
UK Statistics Authority,Office for National Statistics,02-Mar-20,Capital Major Works >25K,Property Newport,Paramount Office Interiors Ltd,176873,"60,153.46", Major Works Newport,SME,Programme Expenditure
UK Statistics Authority,Office for National Statistics,02-Mar-20,Major Works Over 25K,Property Newport,Paramount Office Interiors Ltd,176873,"111,713.55", Major Works Newport,SME,Programme Expenditure
UK Statistics Authority,Office for National Statistics,02-Mar-20,End User Software And Hardware,Tech Delivery Next Gen IT And Infrastructure,Computacenter (Uk) Limited,176875,"3,791.16", Software Licenses,Large,Programme Expenditure
UK Statistics Authority,Office for National Statistics,02-Mar-20,End User Software And Hardware,IT Operations,Computacenter (Uk) Limited,176875,"54,384.00", Software Licenses,Large,Programme Expenditure
UK Statistics Authority,Office for National Statistics,02-Mar-20,Exp - Purchase Of Goods/Services - Training & Development - Seminar & Conference Fees,Office Of Chief Data And Information,CTS (Cloud Technology Solutions Ltd),176882,"184,032.00", Google Cloud Services,Large,Programme Expenditure
UK Statistics Authority,Office for National Statistics,02-Mar-20,Hosting,IT Operations,Amazon Web Services Inc,176883,"67,029.04", Cloud Services,Large,Programme Expenditure
UK Statistics Authority,Office for National Statistics,02-Mar-20,Exp - Purchase Of Goods/Services - IT Contractual Services,IT Applications,Cysure Limited,176884,"155,175.16", Software Support,SME,Programme Expenditure
UK Statistics Authority,Office for National Statistics,02-Mar-20,Exp - Purchase Of Goods/Services - Contractor Travel,IT Applications,Cysure Limited,176884,"6,055.94", Information Management Services,SME,Programme Expenditure
UK Statistics Authority,Office for National Statistics,02-Mar-20,Other Goods And Services,Census CCS Data Collection,Adecco UK Limited,176885,"694,610.40", Census People Services ,SME,Programme Expenditure
UK Statistics Authority,Office for National Statistics,02-Mar-20,Surveys,Prices Division,Kantar UK Ltd,176889,"195,689.00", Statistical Services,Large,Programme Expenditure
UK Statistics Authority,Office for National Statistics,02-Mar-20,Exp - Purchase Of Goods And Services Consultants,Consultancy Management,Bloom Procurement Services Ltd,176894,"362,238.49", Information Management Services,Large,Programme Expenditure
UK Statistics Authority,Office for National Statistics,02-Mar-20,Exp - Purchase Of Goods/Services - Contractors,Digital Publishing,Methods Business & Digital Technology Ltd,176896,"32,460.00", Information Management Services,Large,Programme Expenditure
UK Statistics Authority,Office for National Statistics,02-Mar-20,"ICT Outsourcing, Maintenance And Support",Digital Publishing,Methods Business & Digital Technology Ltd,176896,"19,800.00", Software Licenses,Large,Programme Expenditure
UK Statistics Authority,Office for National Statistics,02-Mar-20,Exp - Purchase Of Goods/Services - Contractors,Data Capability,Parity Resources Limited,176899,431.66, Information Management Services,Large,Programme Expenditure
UK Statistics Authority,Office for National Statistics,02-Mar-20,Exp - Purchase Of Goods/Services - Contractors,Data Capability,Parity Resources Limited,176899,"17,878.32", Information Management Services,Large,Programme Expenditure
UK Statistics Authority,Office for National Statistics,02-Mar-20,Exp - Purchase Of Goods/Services - Contractors,Stakeholder Engagement And Comms,Parity Resources Limited,176899,"3,746.25", Information Management Services,Large,Programme Expenditure
UK Statistics Authority,Office for National Statistics,02-Mar-20,Exp - Short-Term Contract & Agency Staff - Full Cost,Beyond 2021 Research And Design,Parity Resources Limited,176899,"7,266.95", Information Management Services,Large,Programme Expenditure
UK Statistics Authority,Office for National Statistics,02-Mar-20,Exp - Purchase Of Goods/Services - Contractors,Business Architecture,Parity Resources Limited,176899,"7,625.52", Information Management Services,Large,Programme Expenditure
UK Statistics Authority,Office for National Statistics,02-Mar-20,Exp - Short-Term Contract & Agency Staff - Full Cost,Census CCS Data Collection,Parity Resources Limited,176899,362.28, Information Management Services,Large,Programme Expenditure
UK Statistics Authority,Office for National Statistics,02-Mar-20,Exp - Purchase Of Goods/Services - Contractors,Programme Delivery,Parity Resources Limited,176899,"25,625.16", Information Management Services,Large,Programme Expenditure
UK Statistics Authority,Office for National Statistics,02-Mar-20,Exp - Purchase Of Goods/Services - Contractors,Programme Delivery,Parity Resources Limited,176899,"8,530.09", Information Management Services,Large,Programme Expenditure
UK Statistics Authority,Office for National Statistics,02-Mar-20,Exp - Purchase Of Goods/Services - Contractors,Programme Delivery,Parity Resources Limited,176899,"12,521.72", Information Management Services,Large,Programme Expenditure
UK Statistics Authority,Office for National Statistics,02-Mar-20,Exp - Short-Term Contract & Agency Staff - Full Cost,International Trade And Transactions,Parity Resources Limited,176899,"7,919.14", Information Management Services,Large,Programme Expenditure
UK Statistics Authority,Office for National Statistics,02-Mar-20,Exp - Purchase Of Goods/Services - Contractors,International Trade And Transactions,Parity Resources Limited,176899,"20,181.12", Information Management Services,Large,Programme Expenditure
UK Statistics Authority,Office for National Statistics,02-Mar-20,Exp - Purchase Of Goods/Services - Contractors,International Trade And Transactions,Parity Resources Limited,176899,"3,220.10", Information Management Services,Large,Programme Expenditure
UK Statistics Authority,Office for National Statistics,02-Mar-20,Exp - Purchase Of Goods/Services - Contractors,International Trade And Transactions,Parity Resources Limited,176899,"25,084.75", Information Management Services,Large,Programme Expenditure
UK Statistics Authority,Office for National Statistics,02-Mar-20,Exp - Short-Term Contract & Agency Staff - Full Cost,Productivity Research And Professional Development,Parity Resources Limited,176899,966.14, Information Management Services,Large,Programme Expenditure
UK Statistics Authority,Office for National Statistics,02-Mar-20,Exp - Short-Term Contract & Agency Staff - Full Cost,Strategy And Engagement,Parity Resources Limited,176899,"1,010.04", Information Management Services,Large,Programme Expenditure
UK Statistics Authority,Office for National Statistics,02-Mar-20,Exp - Short-Term Contract & Agency Staff - Full Cost,Business Architecture Transformation And Statistical Strategy,Parity Resources Limited,176899,257.52, Information Management Services,Large,Programme Expenditure
UK Statistics Authority,Office for National Statistics,02-Mar-20,Exp - Short-Term Contract & Agency Staff - Full Cost,Migration Statistics,Parity Resources Limited,176899,514.5, Information Management Services,Large,Programme Expenditure
UK Statistics Authority,Office for National Statistics,02-Mar-20,Exp - Short-Term Contract & Agency Staff - Full Cost,ASK Business Services,Parity Resources Limited,176899,66.78, Information Management Services,Large,Programme Expenditure
UK Statistics Authority,Office for National Statistics,02-Mar-20,Exp - Short-Term Contract & Agency Staff - Full Cost,ONS And GSS Careers,Parity Resources Limited,176899,923.93, Information Management Services,Large,Programme Expenditure
UK Statistics Authority,Office for National Statistics,02-Mar-20,Exp - Purchase Of Goods/Services - Contractors,Security Advisory,Parity Resources Limited,176899,"14,353.92", Information Management Services,Large,Programme Expenditure
UK Statistics Authority,Office for National Statistics,02-Mar-20,Exp - Short-Term Contract & Agency Staff - Full Cost,Health Analysis And Life Events,Parity Resources Limited,176899,"1,873.43", Information Management Services,Large,Programme Expenditure
UK Statistics Authority,Office for National Statistics,02-Mar-20,Exp - Purchase Of Goods/Services - Contractors,IT Applications,Parity Resources Limited,176899,"33,674.25", Information Management Services,Large,Programme Expenditure
UK Statistics Authority,Office for National Statistics,02-Mar-20,Exp - Short-Term Contract & Agency Staff - Full Cost,Office Of Chief Data And Information,Parity Resources Limited,176899,772.56, Information Management Services,Large,Programme Expenditure
UK Statistics Authority,Office for National Statistics,02-Mar-20,Exp - Short-Term Contract & Agency Staff - Full Cost,Digital Delivery,Parity Resources Limited,176899,626.04, Information Management Services,Large,Programme Expenditure
UK Statistics Authority,Office for National Statistics,02-Mar-20,Exp - Purchase Of Goods/Services - Contractors,Digital Delivery,Parity Resources Limited,176899,"30,502.08", Information Management Services,Large,Programme Expenditure
UK Statistics Authority,Office for National Statistics,02-Mar-20,Exp - Purchase Of Goods/Services - Contractors,Digital Delivery,Parity Resources Limited,176899,"2,870.78", Information Management Services,Large,Programme Expenditure
UK Statistics Authority,Office for National Statistics,02-Mar-20,Exp - Purchase Of Goods/Services - Contractors,Digital Delivery,Parity Resources Limited,176899,"17,224.70", Information Management Services,Large,Programme Expenditure
UK Statistics Authority,Office for National Statistics,02-Mar-20,Exp - Purchase Of Goods/Services - Contractors,Data As A Service,Parity Resources Limited,176899,"15,507.74", Information Management Services,Large,Programme Expenditure
UK Statistics Authority,Office for National Statistics,02-Mar-20,Exp - Short-Term Contract & Agency Staff - Full Cost,Interviewer Management TU,Parity Resources Limited,176899,552.57, Information Management Services,Large,Programme Expenditure
UK Statistics Authority,Office for National Statistics,02-Mar-20,Other Goods And Services,Interviewer Management TU,Parity Resources Limited,176899,364.69, Information Management Services,Large,Programme Expenditure
UK Statistics Authority,Office for National Statistics,02-Mar-20,Exp - Purchase Of Goods/Services - Contractors,Interviewer Support,Parity Resources Limited,176899,"26,111.28", Information Management Services,Large,Programme Expenditure
UK Statistics Authority,Office for National Statistics,02-Mar-20,Exp - Short-Term Contract & Agency Staff - Full Cost,Social Survey Transformation Titchfield,Parity Resources Limited,176899,"3,670.54", Information Management Services,Large,Programme Expenditure
UK Statistics Authority,Office for National Statistics,02-Mar-20,Exp - Purchase Of Goods/Services - Contractors,Social Survey Transformation Titchfield,Parity Resources Limited,176899,"16,220.52", Information Management Services,Large,Programme Expenditure
UK Statistics Authority,Office for National Statistics,02-Mar-20,Exp - Short-Term Contract & Agency Staff - Full Cost,Labour Market,Parity Resources Limited,176899,451.81, Information Management Services,Large,Programme Expenditure
UK Statistics Authority,Office for National Statistics,02-Mar-20,Exp - Short-Term Contract & Agency Staff - Full Cost,Labour Market,Parity Resources Limited,176899,289.19, Information Management Services,Large,Programme Expenditure
UK Statistics Authority,Office for National Statistics,02-Mar-20,Exp - Purchase Of Goods/Services - IT Contractual Services,Digital Publishing,E Synergy Solutions,176906,"13,200.00", Information Management Services,SME,Programme Expenditure
UK Statistics Authority,Office for National Statistics,02-Mar-20,Exp - Purchase Of Goods/Services - IT Contractual Services,Tech Delivery Legacy SP,E Synergy Solutions,176906,"98,724.00", Information Management Services,SME,Programme Expenditure
UK Statistics Authority,Office for National Statistics,02-Mar-20,Exp - Purchase Of Goods/Services - IT Contractual Services,Tech Delivery Next Gen IT And Infrastructure,E Synergy Solutions,176906,"68,680.04", Information Management Services,SME,Programme Expenditure
UK Statistics Authority,Office for National Statistics,02-Mar-20,Exp - Purchase Of Goods/Services - IT Contractual Services,IT Operations,E Synergy Solutions,176906,"124,233.00", Information Management Services,SME,Programme Expenditure
UK Statistics Authority,Office for National Statistics,02-Mar-20,Exp - Purchase Of Goods/Services - IT Contractual Services,Data Science Campus,E Synergy Solutions,176906,"33,390.00", Information Management Services,SME,Programme Expenditure
UK Statistics Authority,Office for National Statistics,02-Mar-20,Surveys,Social Surveys Division,Natcen Social Research,176907,"277,472.27", Statistical Services,Large,Programme Expenditure
UK Statistics Authority,Office for National Statistics,02-Mar-20,Exp - Purchase Of Goods/Services - Contractors,Gss Strategy Delivery,Concept Information Technology Ltd T/A Concept Resourcing,176910,"9,510.29", Information Management Services,Large,Programme Expenditure
UK Statistics Authority,Office for National Statistics,02-Mar-20,Exp - Short-Term Contract & Agency Staff - Full Cost,Beyond 2021 Research And Design,Concept Information Technology Ltd T/A Concept Resourcing,176910,"9,342.33", Information Management Services,Large,Programme Expenditure
UK Statistics Authority,Office for National Statistics,02-Mar-20,Exp - Purchase Of Goods/Services - Contractors,Testing,Concept Information Technology Ltd T/A Concept Resourcing,176910,"20,647.22", Information Management Services,Large,Programme Expenditure
UK Statistics Authority,Office for National Statistics,02-Mar-20,Exp - Short-Term Contract & Agency Staff - Full Cost,Census CCS Data Collection,Concept Information Technology Ltd T/A Concept Resourcing,176910,"5,069.02", Information Management Services,Large,Programme Expenditure
UK Statistics Authority,Office for National Statistics,02-Mar-20,Exp - Short-Term Contract & Agency Staff - Full Cost,Business Change Support,Concept Information Technology Ltd T/A Concept Resourcing,176910,"23,883.47", Information Management Services,Large,Programme Expenditure
UK Statistics Authority,Office for National Statistics,02-Mar-20,Exp - Short-Term Contract & Agency Staff - Full Cost,Business Change Support,Concept Information Technology Ltd T/A Concept Resourcing,176910,"8,708.35", Information Management Services,Large,Programme Expenditure
UK Statistics Authority,Office for National Statistics,02-Mar-20,Exp - Short-Term Contract & Agency Staff - Full Cost,Business Change Support,Concept Information Technology Ltd T/A Concept Resourcing,176910,"4,156.92", Information Management Services,Large,Programme Expenditure
UK Statistics Authority,Office for National Statistics,02-Mar-20,Exp - Short-Term Contract & Agency Staff - Full Cost,Business Change Support,Concept Information Technology Ltd T/A Concept Resourcing,176910,"8,111.07", Information Management Services,Large,Programme Expenditure
UK Statistics Authority,Office for National Statistics,02-Mar-20,Exp - Short-Term Contract & Agency Staff - Full Cost,Business Change Support,Concept Information Technology Ltd T/A Concept Resourcing,176910,"24,867.60", Information Management Services,Large,Programme Expenditure
UK Statistics Authority,Office for National Statistics,02-Mar-20,Exp - Purchase Of Goods/Services - Contractors,Business Change Support,Concept Information Technology Ltd T/A Concept Resourcing,176910,"6,767.24", Information Management Services,Large,Programme Expenditure
UK Statistics Authority,Office for National Statistics,02-Mar-20,Exp - Purchase Of Goods/Services - Contractors,Business Change Support,Concept Information Technology Ltd T/A Concept Resourcing,176910,"7,177.30", Information Management Services,Large,Programme Expenditure
UK Statistics Authority,Office for National Statistics,02-Mar-20,Exp - Short-Term Contract & Agency Staff - Full Cost,International Trade And Transactions,Concept Information Technology Ltd T/A Concept Resourcing,176910,"6,227.75", Information Management Services,Large,Programme Expenditure
UK Statistics Authority,Office for National Statistics,02-Mar-20,Exp - Short-Term Contract & Agency Staff - Full Cost,International Trade And Transactions,Concept Information Technology Ltd T/A Concept Resourcing,176910,"7,946.30", Information Management Services,Large,Programme Expenditure
UK Statistics Authority,Office for National Statistics,02-Mar-20,Exp - Short-Term Contract & Agency Staff - Full Cost,International Trade And Transactions,Concept Information Technology Ltd T/A Concept Resourcing,176910,"13,336.02", Information Management Services,Large,Programme Expenditure
UK Statistics Authority,Office for National Statistics,02-Mar-20,Exp - Short-Term Contract & Agency Staff - Full Cost,International Trade And Transactions,Concept Information Technology Ltd T/A Concept Resourcing,176910,"12,711.72", Information Management Services,Large,Programme Expenditure
UK Statistics Authority,Office for National Statistics,02-Mar-20,Exp - Short-Term Contract & Agency Staff - Full Cost,International Trade And Transactions,Concept Information Technology Ltd T/A Concept Resourcing,176910,"4,533.53", Information Management Services,Large,Programme Expenditure
UK Statistics Authority,Office for National Statistics,02-Mar-20,Exp - Purchase Of Goods/Services - Contractors,International Trade And Transactions,Concept Information Technology Ltd T/A Concept Resourcing,176910,"3,938.64", Information Management Services,Large,Programme Expenditure
UK Statistics Authority,Office for National Statistics,02-Mar-20,Exp - Short-Term Contract & Agency Staff - Full Cost,Productivity Research And Professional Development,Concept Information Technology Ltd T/A Concept Resourcing,176910,"4,747.78", Information Management Services,Large,Programme Expenditure
UK Statistics Authority,Office for National Statistics,02-Mar-20,Exp - Short-Term Contract & Agency Staff - Full Cost,Productivity Research And Professional Development,Concept Information Technology Ltd T/A Concept Resourcing,176910,"3,228.71", Information Management Services,Large,Programme Expenditure
UK Statistics Authority,Office for National Statistics,02-Mar-20,Exp - Short-Term Contract & Agency Staff - Full Cost,Business Architecture Transformation And Statistical Strategy,Concept Information Technology Ltd T/A Concept Resourcing,176910,"4,455.95", Information Management Services,Large,Programme Expenditure
UK Statistics Authority,Office for National Statistics,02-Mar-20,Exp - Short-Term Contract & Agency Staff - Full Cost,PBS Leadership,Concept Information Technology Ltd T/A Concept Resourcing,176910,"2,603.26", Information Management Services,Large,Programme Expenditure
UK Statistics Authority,Office for National Statistics,02-Mar-20,Exp - Short-Term Contract & Agency Staff - Full Cost,Finance,Concept Information Technology Ltd T/A Concept Resourcing,176910,"2,999.88", Information Management Services,Large,Programme Expenditure
UK Statistics Authority,Office for National Statistics,02-Mar-20,Exp - Purchase Of Goods/Services - Contractors,Tech Delivery Legacy SP,Concept Information Technology Ltd T/A Concept Resourcing,176910,"10,650.00", Information Management Services,Large,Programme Expenditure
UK Statistics Authority,Office for National Statistics,02-Mar-20,Exp - Purchase Of Goods/Services - Contractors,Tech Delivery Data As A Platform,Concept Information Technology Ltd T/A Concept Resourcing,176910,"22,759.87", Information Management Services,Large,Programme Expenditure
UK Statistics Authority,Office for National Statistics,02-Mar-20,Exp - Purchase Of Goods/Services - Contractors,Office Of Chief Data And Information,Concept Information Technology Ltd T/A Concept Resourcing,176910,"27,030.00", Information Management Services,Large,Programme Expenditure
UK Statistics Authority,Office for National Statistics,02-Mar-20,Exp - Short-Term Contract & Agency Staff - Full Cost,Business Statistics Transformation,Concept Information Technology Ltd T/A Concept Resourcing,176910,"10,280.06", Information Management Services,Large,Programme Expenditure
UK Statistics Authority,Office for National Statistics,02-Mar-20,Exp - Short-Term Contract & Agency Staff - Full Cost,Interviewer Management TU,Concept Information Technology Ltd T/A Concept Resourcing,176910,"9,838.54", Information Management Services,Large,Programme Expenditure
UK Statistics Authority,Office for National Statistics,02-Mar-20,Other Goods And Services,Interviewer Management TU,Concept Information Technology Ltd T/A Concept Resourcing,176910,"2,343.14", Information Management Services,Large,Programme Expenditure
UK Statistics Authority,Office for National Statistics,02-Mar-20,Other Goods And Services,Interviewer Support,Concept Information Technology Ltd T/A Concept Resourcing,176910,"2,371.31", Information Management Services,Large,Programme Expenditure
UK Statistics Authority,Office for National Statistics,02-Mar-20,Exp - Short-Term Contract & Agency Staff - Full Cost,Social Survey Transformation Newport,Concept Information Technology Ltd T/A Concept Resourcing,176910,"3,233.65", Information Management Services,Large,Programme Expenditure
UK Statistics Authority,Office for National Statistics,02-Mar-20,Exp - Short-Term Contract & Agency Staff - Full Cost,Prices Division,Concept Information Technology Ltd T/A Concept Resourcing,176910,"8,094.22", Information Management Services,Large,Programme Expenditure
UK Statistics Authority,Office for National Statistics,02-Mar-20,Exp - Short-Term Contract & Agency Staff - Full Cost,Prices Division,Concept Information Technology Ltd T/A Concept Resourcing,176910,"7,322.27", Information Management Services,Large,Programme Expenditure
UK Statistics Authority,Office for National Statistics,02-Mar-20,Exp - Short-Term Contract & Agency Staff - Full Cost,Prices Division,Concept Information Technology Ltd T/A Concept Resourcing,176910,"15,136.97", Information Management Services,Large,Programme Expenditure
UK Statistics Authority,Office for National Statistics,02-Mar-20,Other Goods And Services,Overseas Development,Foreign & Commonwealth Office,176911,"87,723.38", Overseas Staff Services,Large,Programme Expenditure
UK Statistics Authority,Office for National Statistics,04-Mar-20,Travel And Subsistence,CWT Trainline,Corporate Travel Management ,176939,"66,992.39", Corporate Travel Management ,SME,Programme Expenditure
UK Statistics Authority,Office for National Statistics,04-Mar-20,Exp - Purchase Of Goods/Services - Contractors,Testing,LA International,176943,512.62, Information Management Services,SME,Programme Expenditure
UK Statistics Authority,Office for National Statistics,04-Mar-20,Exp - Short-Term Contract & Agency Staff - Full Cost,Digital Publishing,LA International,176943,97.04, Information Management Services,SME,Programme Expenditure
UK Statistics Authority,Office for National Statistics,04-Mar-20,Exp - Purchase Of Goods/Services - Contractors,IT Applications,LA International,176943,"2,883.48", Information Management Services,SME,Programme Expenditure
UK Statistics Authority,Office for National Statistics,04-Mar-20,Exp - Purchase Of Goods/Services - Contractors,Digital Delivery,LA International,176943,"33,012.36", Information Management Services,SME,Programme Expenditure
UK Statistics Authority,Office for National Statistics,04-Mar-20,Exp - Purchase Of Goods/Services - Contractors,Digital Delivery,LA International,176943,"3,203.88", Information Management Services,SME,Programme Expenditure
UK Statistics Authority,Office for National Statistics,05-Mar-20,End User Software And Hardware,IT Operations,Phoenix Software Ltd,177381,"33,836.40", Information Management Services,SME,Programme Expenditure
UK Statistics Authority,Office for National Statistics,05-Mar-20,Other Goods And Services,Beyond 2021 Research And Design,The Sensible Code Company,177382,"100,491.61", Information Management Services,SME,Programme Expenditure
UK Statistics Authority,Office for National Statistics,05-Mar-20,Capital Major Works >25K,Property Christchurch,Paramount Office Interiors Ltd,177386,"52,230.42", Major Works Christchurch,SME,Programme Expenditure
UK Statistics Authority,Office for National Statistics,05-Mar-20,Other Professional Services,Data As A Service,Royal Borough of Kensington and Chelsea,177392,"167,610.00", Statistical Services,Large,Programme Expenditure
UK Statistics Authority,Office for National Statistics,05-Mar-20,Training & Development,Security Operations,CTS (Cloud Technology Solutions Ltd),177397,"38,340.00", Google Cloud Services,Large,Programme Expenditure
UK Statistics Authority,Office for National Statistics,06-Mar-20,Exp - Short-Term Contract & Agency Staff - Full Cost,Census CCS Data Collection,Concept Information Technology Ltd T/A Concept Resourcing,177404,"6,914.36", Information Management Services,Large,Programme Expenditure
UK Statistics Authority,Office for National Statistics,06-Mar-20,Exp - Short-Term Contract & Agency Staff - Full Cost,Business Change Support,Concept Information Technology Ltd T/A Concept Resourcing,177404,"8,375.29", Information Management Services,Large,Programme Expenditure
UK Statistics Authority,Office for National Statistics,06-Mar-20,Exp - Short-Term Contract & Agency Staff - Full Cost,Business Change Support,Concept Information Technology Ltd T/A Concept Resourcing,177404,"2,770.56", Information Management Services,Large,Programme Expenditure
UK Statistics Authority,Office for National Statistics,06-Mar-20,Exp - Short-Term Contract & Agency Staff - Full Cost,Business Change Support,Concept Information Technology Ltd T/A Concept Resourcing,177404,"2,969.03", Information Management Services,Large,Programme Expenditure
UK Statistics Authority,Office for National Statistics,06-Mar-20,Exp - Short-Term Contract & Agency Staff - Full Cost,Business Change Support,Concept Information Technology Ltd T/A Concept Resourcing,177404,"6,644.02", Information Management Services,Large,Programme Expenditure
UK Statistics Authority,Office for National Statistics,06-Mar-20,Exp - Short-Term Contract & Agency Staff - Full Cost,Business Change Support,Concept Information Technology Ltd T/A Concept Resourcing,177404,"13,644.16", Information Management Services,Large,Programme Expenditure
UK Statistics Authority,Office for National Statistics,06-Mar-20,Exp - Purchase Of Goods/Services - Contractors,Business Change Support,Concept Information Technology Ltd T/A Concept Resourcing,177404,"5,938.06", Information Management Services,Large,Programme Expenditure
UK Statistics Authority,Office for National Statistics,06-Mar-20,Exp - Purchase Of Goods/Services - Contractors,Business Change Support,Concept Information Technology Ltd T/A Concept Resourcing,177404,"4,747.83", Information Management Services,Large,Programme Expenditure
UK Statistics Authority,Office for National Statistics,06-Mar-20,Exp - Purchase Of Goods/Services - Contractors,Business Change Support,Concept Information Technology Ltd T/A Concept Resourcing,177404,"5,616.82", Information Management Services,Large,Programme Expenditure
UK Statistics Authority,Office for National Statistics,06-Mar-20,Exp - Short-Term Contract & Agency Staff - Full Cost,International Trade And Transactions,Concept Information Technology Ltd T/A Concept Resourcing,177404,"2,893.60", Information Management Services,Large,Programme Expenditure
UK Statistics Authority,Office for National Statistics,06-Mar-20,Exp - Short-Term Contract & Agency Staff - Full Cost,International Trade And Transactions,Concept Information Technology Ltd T/A Concept Resourcing,177404,"6,409.97", Information Management Services,Large,Programme Expenditure
UK Statistics Authority,Office for National Statistics,06-Mar-20,Exp - Short-Term Contract & Agency Staff - Full Cost,International Trade And Transactions,Concept Information Technology Ltd T/A Concept Resourcing,177404,"8,113.48", Information Management Services,Large,Programme Expenditure
UK Statistics Authority,Office for National Statistics,06-Mar-20,Exp - Short-Term Contract & Agency Staff - Full Cost,International Trade And Transactions,Concept Information Technology Ltd T/A Concept Resourcing,177404,"5,938.06", Information Management Services,Large,Programme Expenditure
UK Statistics Authority,Office for National Statistics,06-Mar-20,Exp - Short-Term Contract & Agency Staff - Full Cost,International Trade And Transactions,Concept Information Technology Ltd T/A Concept Resourcing,177404,"2,969.03", Information Management Services,Large,Programme Expenditure
UK Statistics Authority,Office for National Statistics,06-Mar-20,Exp - Purchase Of Goods/Services - Contractors,International Trade And Transactions,Concept Information Technology Ltd T/A Concept Resourcing,177404,"2,895.47", Information Management Services,Large,Programme Expenditure
UK Statistics Authority,Office for National Statistics,06-Mar-20,Exp - Short-Term Contract & Agency Staff - Full Cost,Business Architecture Transformation And Statistical Strategy,Concept Information Technology Ltd T/A Concept Resourcing,177404,"2,828.34", Information Management Services,Large,Programme Expenditure
UK Statistics Authority,Office for National Statistics,06-Mar-20,Exp - Short-Term Contract & Agency Staff - Full Cost,Business Statistics Transformation,Concept Information Technology Ltd T/A Concept Resourcing,177404,"2,969.03", Information Management Services,Large,Programme Expenditure
UK Statistics Authority,Office for National Statistics,06-Mar-20,Telecoms,IT Operations,BT Global Services,177409,"49,780.39", Cloud Services,Large,Programme Expenditure
UK Statistics Authority,Office for National Statistics,06-Mar-20,Exp - Purchase Of Goods And Services Consultants,Consultancy Management,Deloitte,177420,"42,600.00", Information Management Services ,Large,Programme Expenditure
UK Statistics Authority,Office for National Statistics,06-Mar-20,Capital Major Works >25K,Property Services,Paramount Office Interiors Ltd,177424,"33,467.77", Major Works Newport,SME,Programme Expenditure
UK Statistics Authority,Office for National Statistics,06-Mar-20,Hosting,IT Operations,Amazon Web Services Inc,177440,"64,733.56", Cloud Services,Large,Programme Expenditure
UK Statistics Authority,Office for National Statistics,06-Mar-20,Major Works Over 25K,Property Christchurch,Pickford?s Move Managment Ltd,177443,"36,262.20", Major Works Christchurch,Large,Programme Expenditure
UK Statistics Authority,Office for National Statistics,06-Mar-20,Surveys,Crime Statistics,Kantar UK Ltd,177444,"588,696.69", Statistical Services,Large,Programme Expenditure
UK Statistics Authority,Office for National Statistics,06-Mar-20,Surveys,Prices Division,Kantar UK Ltd,177444,"171,580.83", Statistical Services,Large,Programme Expenditure
UK Statistics Authority,Office for National Statistics,06-Mar-20,Surveys,Prices Division,Kantar UK Ltd,177444,"1,505.83", Statistical Services,Large,Programme Expenditure
UK Statistics Authority,Office for National Statistics,06-Mar-20,Exp - Purchase Of Goods/Services - Contractors,Tech Delivery Data As A Platform,Talent International,177450,"17,251.20", Information Management Services,Large,Programme Expenditure
UK Statistics Authority,Office for National Statistics,06-Mar-20,Exp - Purchase Of Goods/Services - Contractors,Tech Delivery Next Gen IT And Infrastructure,Talent International,177450,"12,783.46", Information Management Services,Large,Programme Expenditure
UK Statistics Authority,Office for National Statistics,06-Mar-20,Exp - Purchase Of Goods/Services - Contractors,Digital Delivery,Talent International,177450,"10,886.40", Information Management Services,Large,Programme Expenditure
UK Statistics Authority,Office for National Statistics,06-Mar-20,Exp - Purchase Of Goods/Services - Contractors,Business Architecture,LA Fosse Associates Limited ,177452,"29,460.00", Information Management Services,Large,Programme Expenditure
UK Statistics Authority,Office for National Statistics,06-Mar-20,Exp - Purchase Of Goods/Services - Contractors,Business Architecture,LA Fosse Associates Limited ,177452,"20,355.00", Information Management Services,Large,Programme Expenditure
UK Statistics Authority,Office for National Statistics,06-Mar-20,Exp - Purchase Of Goods/Services - Contractors,Business Architecture,LA Fosse Associates Limited ,177452,"10,350.00", Information Management Services,Large,Programme Expenditure
UK Statistics Authority,Office for National Statistics,06-Mar-20,Exp - Purchase Of Goods/Services - Training & Development - Professional Membership Fees,Data Science Campus,Bates Wells & Braithwaite London LLP,177454,150, Global Platform Information Management Services,Large,Programme Expenditure
UK Statistics Authority,Office for National Statistics,06-Mar-20,Other Professional Services,Data Science Campus,Bates Wells & Braithwaite London LLP,177454,"32,094.00", Global Platform Information Management Services,Large,Programme Expenditure
UK Statistics Authority,Office for National Statistics,09-Mar-20,"ICT Outsourcing, Maintenance And Support",IT Operations,Actian Europe Limited,178006,"662,104.80", Licenses and Support,SME,Programme Expenditure
UK Statistics Authority,Office for National Statistics,09-Mar-20,Other Goods And Services,Data Collection Service,Good Things Foundation,178007,"142,224.94", Information Management Services,SME,Programme Expenditure
UK Statistics Authority,Office for National Statistics,09-Mar-20,Other Goods And Services,Beyond 2021 Research And Design,The Sensible Code Company,178010,"99,242.71", Information Management Services,SME,Programme Expenditure
UK Statistics Authority,Office for National Statistics,09-Mar-20,Exp - Purchase Of Goods And Services Consultants,Digital Publishing,Swirrl IT Ltd,178014,"86,206.80", Information Management Services ,SME,Programme Expenditure
UK Statistics Authority,Office for National Statistics,09-Mar-20,Exp - Purchase Of Goods/Services - Contractors,Testing,Certes Computing Ltd,178026,"31,512.48", Information Management Services,SME,Programme Expenditure
UK Statistics Authority,Office for National Statistics,09-Mar-20,Exp - Purchase Of Goods/Services - Contractors,Security Advisory,Certes Computing Ltd,178026,"49,030.60", Information Management Services,SME,Programme Expenditure
UK Statistics Authority,Office for National Statistics,09-Mar-20,Exp - Purchase Of Goods/Services - Contractors,Data Architecture,Certes Computing Ltd,178026,"14,397.84", Information Management Services,SME,Programme Expenditure
UK Statistics Authority,Office for National Statistics,09-Mar-20,Exp - Purchase Of Goods/Services - Contractors,Strategy And Architecture,Certes Computing Ltd,178026,"16,652.40", Information Management Services,SME,Programme Expenditure
UK Statistics Authority,Office for National Statistics,09-Mar-20,Exp - Purchase Of Goods/Services - Contractors,Tech Delivery Legacy SP,Certes Computing Ltd,178026,"12,777.82", Information Management Services,SME,Programme Expenditure
UK Statistics Authority,Office for National Statistics,09-Mar-20,Exp - Purchase Of Goods/Services - Contractors,IT Applications,Certes Computing Ltd,178026,"14,091.12", Information Management Services,SME,Programme Expenditure
UK Statistics Authority,Office for National Statistics,09-Mar-20,Exp - Purchase Of Goods/Services - Contractors,Digital Delivery,Certes Computing Ltd,178026,"7,045.32", Information Management Services,SME,Programme Expenditure
UK Statistics Authority,Office for National Statistics,09-Mar-20,Exp - Purchase Of Goods/Services - Contractors,Digital Delivery,Certes Computing Ltd,178026,"12,505.87", Information Management Services,SME,Programme Expenditure
UK Statistics Authority,Office for National Statistics,09-Mar-20,Exp - Short-Term Contract & Agency Staff - Full Cost,Stakeholder Engagement And Comms,LA International,178027,"1,657.01", Information Management Services,SME,Programme Expenditure
UK Statistics Authority,Office for National Statistics,09-Mar-20,Exp - Purchase Of Goods/Services - Contractors,Testing,LA International,178027,"7,048.44", Information Management Services,SME,Programme Expenditure
UK Statistics Authority,Office for National Statistics,09-Mar-20,Exp - Purchase Of Goods/Services - Contractors,Programme Delivery,LA International,178027,"3,366.90", Information Management Services,SME,Programme Expenditure
UK Statistics Authority,Office for National Statistics,09-Mar-20,Exp - Purchase Of Goods/Services - Contractors,Sustainability And Inequalities,LA International,178027,"3,156.90", Information Management Services,SME,Programme Expenditure
UK Statistics Authority,Office for National Statistics,09-Mar-20,Exp - Purchase Of Goods/Services - Contractors,Security Advisory,LA International,178027,"15,378.48", Information Management Services,SME,Programme Expenditure
UK Statistics Authority,Office for National Statistics,09-Mar-20,Exp - Purchase Of Goods/Services - Contractors,Data Architecture,LA International,178027,"7,112.52", Information Management Services,SME,Programme Expenditure
UK Statistics Authority,Office for National Statistics,09-Mar-20,Exp - Purchase Of Goods/Services - Contractors,Data Architecture,LA International,178027,"3,524.22", Information Management Services,SME,Programme Expenditure
UK Statistics Authority,Office for National Statistics,09-Mar-20,Exp - Purchase Of Goods/Services - Contractors,Tech Delivery SRS,LA International,178027,"3,588.30", Information Management Services,SME,Programme Expenditure
UK Statistics Authority,Office for National Statistics,09-Mar-20,Exp - Purchase Of Goods/Services - Contractors,Tech Delivery Legacy SP,LA International,178027,"3,588.30", Information Management Services,SME,Programme Expenditure
UK Statistics Authority,Office for National Statistics,09-Mar-20,Exp - Purchase Of Goods/Services - Contractors,IT Applications,LA International,178027,"22,440.02", Information Management Services,SME,Programme Expenditure
UK Statistics Authority,Office for National Statistics,09-Mar-20,Exp - Purchase Of Goods/Services - Contractors,Digital Delivery,LA International,178027,"7,689.30", Information Management Services,SME,Programme Expenditure
UK Statistics Authority,Office for National Statistics,09-Mar-20,Exp - Purchase Of Goods/Services - Contractors,Digital Delivery,LA International,178027,"27,629.92", Information Management Services,SME,Programme Expenditure
UK Statistics Authority,Office for National Statistics,09-Mar-20,Exp - Purchase Of Goods/Services - Contractors,Social Survey Transformation Titchfield,LA International,178027,"8,330.09", Information Management Services,SME,Programme Expenditure
UK Statistics Authority,Office for National Statistics,09-Mar-20,Exp - Purchase Of Goods/Services - Training & Development - Professional Membership Fees,Productivity Research And Professional Development,National Institute of Economic and Social Research,178029,"54,000.00", Annual Membership Fees,SME,Programme Expenditure
UK Statistics Authority,Office for National Statistics,09-Mar-20,End User Software And Hardware,IT Operations,Computacenter (UK) Limited,178032,"88,277.88", Software Licenses,Large,Programme Expenditure
UK Statistics Authority,Office for National Statistics,09-Mar-20,Other Goods And Services,Data Collection Service,Leidos Innovations UK Limited,178040,"734,745.10", Census Questionaire Management,Large,Programme Expenditure
UK Statistics Authority,Office for National Statistics,10-Mar-20,End User Software And Hardware,IT Operations,Computacenter (UK) Limited,178048,"36,363.60", Software Licenses,Large,Programme Expenditure
UK Statistics Authority,Office for National Statistics,10-Mar-20,Exp - Purchase Of Goods/Services - IT Contractual Services,DST Reapportioning,E Synergy Solutions,178056,"68,280.00", Information Management Services,SME,Programme Expenditure
UK Statistics Authority,Office for National Statistics,10-Mar-20,End User Software And Hardware,IT Operations,Phoenix Software Ltd,178060,"272,937.60", Information Management Services,SME,Programme Expenditure
UK Statistics Authority,Office for National Statistics,10-Mar-20,End User Software And Hardware,Census CCS Data Collection,Softcat,178061,"33,680.53", Software Licenses,SME,Programme Expenditure
UK Statistics Authority,Office for National Statistics,10-Mar-20,End User Software And Hardware,Operations,Softcat,178061,"78,587.92", Software Licenses,SME,Programme Expenditure
UK Statistics Authority,Office for National Statistics,10-Mar-20,End User Software And Hardware,IT Operations,Softcat,178061,"326,803.25", Software Licenses,SME,Programme Expenditure
UK Statistics Authority,Office for National Statistics,10-Mar-20,Exp - Purchase Of Goods/Services - Contractors,Senior Management,Certes Computing Ltd,178064,"15,372.00", Information Management Services,SME,Programme Expenditure
UK Statistics Authority,Office for National Statistics,10-Mar-20,Exp - Purchase Of Goods/Services - Contractors,Tech Delivery Legacy SP,Certes Computing Ltd,178064,"6,405.00", Information Management Services,SME,Programme Expenditure
UK Statistics Authority,Office for National Statistics,10-Mar-20,Exp - Purchase Of Goods/Services - Contractors,Tech Delivery Data As A Platform,Certes Computing Ltd,178064,"14,603.40", Information Management Services,SME,Programme Expenditure
UK Statistics Authority,Office for National Statistics,10-Mar-20,Exp - Purchase Of Goods/Services - Contractors,Digital Delivery,Certes Computing Ltd,178064,"12,682.01", Information Management Services,SME,Programme Expenditure
UK Statistics Authority,Office for National Statistics,10-Mar-20,Exp - Purchase Of Goods/Services - IT Contractual Services,DST Reapportioning,QA Ltd,178068,"29,028.00", Information Management Services,Large,Programme Expenditure
UK Statistics Authority,Office for National Statistics,11-Mar-20,"ICT Outsourcing, Maintenance And Support",IT Operations,Crown Hosting Data Centres Limited,178072,110.09,Crown Hosted Data Center,SME,Programme Expenditure
UK Statistics Authority,Office for National Statistics,11-Mar-20,Telecoms,IT Operations,Crown Hosting Data Centres Limited,178072,"2,580.00", Crown Hosted Data Center,SME,Programme Expenditure
UK Statistics Authority,Office for National Statistics,11-Mar-20,IT Management And Change,IT Operations,Crown Hosting Data Centres Limited,178072,"76,466.22",Crown Hosted Data Center,SME,Programme Expenditure
UK Statistics Authority,Office for National Statistics,11-Mar-20,Exp - Purchase Of Goods/Services - Other ICT Costs Software,Finance,SCC,178078,"154,286.88", ERP Licenses,Large,Programme Expenditure
UK Statistics Authority,Office for National Statistics,11-Mar-20,Travel And Subsistence,CWT Trainline,Corporate Travel Management ,178081,"53,296.13", Corporate Travel Management ,SME,Programme Expenditure
UK Statistics Authority,Office for National Statistics,11-Mar-20,Postage,Survey Processing Centre,DHL Parcel Ltd,178082,"49,201.90", Outgoing Postage,Large,Programme Expenditure
UK Statistics Authority,Office for National Statistics,11-Mar-20,Exp - Purchase Of Goods/Services - IT Contractual Services,Strategy And Architecture,Medley Business Solutions Ltd,178084,"28,224.58", Information Management Services,Large,Programme Expenditure
UK Statistics Authority,Office for National Statistics,11-Mar-20,Exp - Purchase Of Goods/Services - Contractor Travel,Strategy And Architecture,Medley Business Solutions Ltd,178084,531.68, Information Management Services,Large,Programme Expenditure
UK Statistics Authority,Office for National Statistics,11-Mar-20,Exp - Purchase Of Goods/Services - Contractors,International Trade And Transactions,Certes Computing Ltd,178085,"13,450.56", Information Management Services,SME,Programme Expenditure
UK Statistics Authority,Office for National Statistics,11-Mar-20,Exp - Purchase Of Goods/Services - Contractors,Data Architecture,Certes Computing Ltd,178085,"14,397.84", Information Management Services,SME,Programme Expenditure
UK Statistics Authority,Office for National Statistics,12-Mar-20,Exp - Purchase Of Goods/Services - Contractors,International Trade And Transactions,Mango Solutions,178472,"37,830.00", Information Management Services,SME,Programme Expenditure
UK Statistics Authority,Office for National Statistics,12-Mar-20,Hosting,Tech Delivery Data As A Platform,Kainos,178473,"9,258.70", Cloud Services,Large,Programme Expenditure
UK Statistics Authority,Office for National Statistics,12-Mar-20,Exp - Purchase Of Goods/Services - Contractor Travel,Tech Delivery Data As A Platform,Kainos,178473,"7,782.34", Information Management Services,Large,Programme Expenditure
UK Statistics Authority,Office for National Statistics,12-Mar-20,"ICT Outsourcing, Maintenance And Support",IT Operations,CTS (Cloud Technology Solutions Ltd),178493,"7,933.80", Google Cloud Services,Large,Programme Expenditure
UK Statistics Authority,Office for National Statistics,12-Mar-20,End User Software And Hardware,IT Operations,CTS (Cloud Technology Solutions Ltd),178493,"32,040.00", Google Cloud Services,Large,Programme Expenditure
UK Statistics Authority,Office for National Statistics,12-Mar-20,Exp - Purchase Of Goods/Services - Contractors Overtime,Tech Delivery Next Gen IT And Infrastructure,Diegesis Limited,178500,"1,140.00", Information Management Services,Large,Programme Expenditure
UK Statistics Authority,Office for National Statistics,12-Mar-20,Exp - Purchase Of Goods/Services - IT Contractual Services,Tech Delivery Next Gen IT And Infrastructure,Diegesis Limited,178500,"39,594.90", Information Management Services,Large,Programme Expenditure
UK Statistics Authority,Office for National Statistics,12-Mar-20,Exp - Purchase Of Goods/Services - IT Contractual Services,IT Applications,Diegesis Limited,178500,"140,924.68", Information Management Services,Large,Programme Expenditure
UK Statistics Authority,Office for National Statistics,13-Mar-20,Exp - Purchase Of Goods/Services - Contractors,International Trade And Transactions,Mango Solutions,178501,"15,504.00", Information Management Services,SME,Programme Expenditure
UK Statistics Authority,Office for National Statistics,13-Mar-20,Exp - Purchase Of Goods/Services - Contractors,International Trade And Transactions,Mango Solutions,178501,"15,600.00", Information Management Services,SME,Programme Expenditure
UK Statistics Authority,Office for National Statistics,13-Mar-20,Exp - Purchase Of Goods And Services Consultants,Digital Publishing,Swirrl IT Ltd,178502,"95,008.80", Information Management Services ,SME,Programme Expenditure
UK Statistics Authority,Office for National Statistics,13-Mar-20,IT Management And Change,IT Operations,SCC,178507,"10,382.40", ERP Licenses,Large,Programme Expenditure
UK Statistics Authority,Office for National Statistics,13-Mar-20,Exp - Purchase Of Goods/Services - Other ICT Costs Software,IT Operations,SCC,178507,"452,781.36", ERP Licenses,Large,Programme Expenditure
UK Statistics Authority,Office for National Statistics,13-Mar-20,Stationery,Lodgecard,Royal Bank of Scotland,178520,"13,288.42", Multiple Procurement Card Stationery Purchases  ,Large,Programme Expenditure
UK Statistics Authority,Office for National Statistics,13-Mar-20,Other Goods And Services,Gpc,Royal Bank of Scotland,178520,"105,101.42", Multiple Procurement Card Stationery Purchases  ,Large,Programme Expenditure
UK Statistics Authority,Office for National Statistics,13-Mar-20,Travel And Subsistence,Car Hire,Royal Bank of Scotland,178520,"40,271.05", Multiple Procurement Card Stationery Purchases  ,Large,Programme Expenditure
UK Statistics Authority,Office for National Statistics,13-Mar-20,Exp - Purchase Of Goods/Services - Contractors,Data Capability,Parity Resources Limited,178537,227.69, Information Management Services,Large,Programme Expenditure
UK Statistics Authority,Office for National Statistics,13-Mar-20,Exp - Purchase Of Goods/Services - Contractors,Data Capability,Parity Resources Limited,178537,"9,227.52", Information Management Services,Large,Programme Expenditure
UK Statistics Authority,Office for National Statistics,13-Mar-20,Exp - Purchase Of Goods/Services - Contractors,Business Architecture,Parity Resources Limited,178537,"1,569.96", Information Management Services,Large,Programme Expenditure
UK Statistics Authority,Office for National Statistics,13-Mar-20,Exp - Purchase Of Goods/Services - Contractors,Testing,Parity Resources Limited,178537,"14,001.48", Information Management Services,Large,Programme Expenditure
UK Statistics Authority,Office for National Statistics,13-Mar-20,Exp - Purchase Of Goods/Services - Contractors,Operations,Parity Resources Limited,178537,"8,078.40", Information Management Services,Large,Programme Expenditure
UK Statistics Authority,Office for National Statistics,13-Mar-20,Exp - Purchase Of Goods/Services - Contractors,Programme Other,Parity Resources Limited,178537,12.59, Information Management Services,Large,Programme Expenditure
UK Statistics Authority,Office for National Statistics,13-Mar-20,Exp - Purchase Of Goods/Services - Contractors,Programme Delivery,Parity Resources Limited,178537,"55,053.90", Information Management Services,Large,Programme Expenditure
UK Statistics Authority,Office for National Statistics,13-Mar-20,Exp - Purchase Of Goods/Services - Contractors,Programme Delivery,Parity Resources Limited,178537,"12,613.49", Information Management Services,Large,Programme Expenditure
UK Statistics Authority,Office for National Statistics,13-Mar-20,Exp - Purchase Of Goods/Services - Contractors,HR Business Partners,Parity Resources Limited,178537,"11,424.00", Information Management Services,Large,Programme Expenditure
UK Statistics Authority,Office for National Statistics,13-Mar-20,Exp - Purchase Of Goods/Services - Contractors,Security Advisory,Parity Resources Limited,178537,"28,605.31", Information Management Services,Large,Programme Expenditure
UK Statistics Authority,Office for National Statistics,13-Mar-20,Exp - Purchase Of Goods/Services - Contractors,Tech Delivery Legacy SP,Parity Resources Limited,178537,"10,092.60", Information Management Services,Large,Programme Expenditure
UK Statistics Authority,Office for National Statistics,13-Mar-20,Exp - Purchase Of Goods/Services - Contractors,IT Applications,Parity Resources Limited,178537,"21,659.04", Information Management Services,Large,Programme Expenditure
UK Statistics Authority,Office for National Statistics,13-Mar-20,Exp - Purchase Of Goods/Services - Contractors,Digital Delivery,Parity Resources Limited,178537,"13,636.22", Information Management Services,Large,Programme Expenditure
UK Statistics Authority,Office for National Statistics,13-Mar-20,Exp - Purchase Of Goods/Services - Contractors,Digital Delivery,Parity Resources Limited,178537,"10,047.74", Information Management Services,Large,Programme Expenditure
UK Statistics Authority,Office for National Statistics,13-Mar-20,Exp - Purchase Of Goods/Services - Contractors,Digital Delivery,Parity Resources Limited,178537,"10,047.74", Information Management Services,Large,Programme Expenditure
UK Statistics Authority,Office for National Statistics,13-Mar-20,Exp - Purchase Of Goods/Services - Contractors,Digital Delivery,Parity Resources Limited,178537,"10,348.92", Information Management Services,Large,Programme Expenditure
UK Statistics Authority,Office for National Statistics,13-Mar-20,Exp - Purchase Of Goods/Services - IT Contractual Services,Digital Delivery,Parity Resources Limited,178537,"8,650.80", Information Management Services,Large,Programme Expenditure
UK Statistics Authority,Office for National Statistics,13-Mar-20,Exp - Purchase Of Goods/Services - Contractors,Data As A Service,Parity Resources Limited,178537,"14,353.92", Information Management Services,Large,Programme Expenditure
UK Statistics Authority,Office for National Statistics,16-Mar-20,Exp - Purchase Of Goods/Services - IT Contractual Services,DST Reapportioning,E Synergy Solutions,179055,"67,800.00", Information Management Services,SME,Programme Expenditure
UK Statistics Authority,Office for National Statistics,16-Mar-20,Exp - Purchase Of Goods/Services - IT Contractual Services,Tech Delivery Legacy SP,E Synergy Solutions,179055,"87,690.00", Information Management Services,SME,Programme Expenditure
UK Statistics Authority,Office for National Statistics,16-Mar-20,Telecoms,IT Operations,BT Global Services,179061,"49,780.39", Cloud Services,Large,Programme Expenditure
UK Statistics Authority,Office for National Statistics,16-Mar-20,Exp - Purchase Of Goods/Services - Contractors,Tech Delivery Data As A Platform,LA International,179069,"14,353.20", Information Management Services,SME,Programme Expenditure
UK Statistics Authority,Office for National Statistics,16-Mar-20,Exp - Short-Term Contract & Agency Staff - Full Cost,Tech Delivery Next Gen IT And Infrastructure,LA International,179069,52.4, Information Management Services,SME,Programme Expenditure
UK Statistics Authority,Office for National Statistics,16-Mar-20,Exp - Purchase Of Goods/Services - Contractors,Digital Delivery,LA International,179069,140.46, Information Management Services,SME,Programme Expenditure
UK Statistics Authority,Office for National Statistics,16-Mar-20,Exp - Purchase Of Goods/Services - Contractors,Digital Delivery,LA International,179069,"14,353.20", Information Management Services,SME,Programme Expenditure
UK Statistics Authority,Office for National Statistics,16-Mar-20,Exp - Purchase Of Goods/Services - IT Contractual Services,Tech Delivery Data As A Platform,Insight Direct,179071,"201,600.00", Information Management Services,Large,Programme Expenditure
UK Statistics Authority,Office for National Statistics,17-Mar-20,Exp - Purchase Of Goods/Services - Contractors,Commercial Services,Certes Computing Ltd,179092,"10,567.85", Information Management Services,SME,Programme Expenditure
UK Statistics Authority,Office for National Statistics,17-Mar-20,Exp - Purchase Of Goods/Services - Contractors,Strategy And Architecture,Certes Computing Ltd,179092,"14,603.40", Information Management Services,SME,Programme Expenditure
UK Statistics Authority,Office for National Statistics,17-Mar-20,Exp - Purchase Of Goods/Services - Contractors,Tech Delivery Legacy SP,Certes Computing Ltd,179092,"35,389.04", Information Management Services,SME,Programme Expenditure
UK Statistics Authority,Office for National Statistics,17-Mar-20,Exp - Purchase Of Goods/Services - Contractors,IT Applications,Certes Computing Ltd,179092,"6,085.20", Information Management Services,SME,Programme Expenditure
UK Statistics Authority,Office for National Statistics,17-Mar-20,Exp - Purchase Of Goods/Services - Contractors,Digital Delivery,Certes Computing Ltd,179092,"49,124.58", Information Management Services,SME,Programme Expenditure
UK Statistics Authority,Office for National Statistics,17-Mar-20,Exp - Purchase Of Goods/Services - Contractors,Testing,LA International,179093,"14,781.91", Information Management Services,SME,Programme Expenditure
UK Statistics Authority,Office for National Statistics,17-Mar-20,Exp - Purchase Of Goods/Services - Contractors,Data Architecture,LA International,179093,"3,524.22", Information Management Services,SME,Programme Expenditure
UK Statistics Authority,Office for National Statistics,17-Mar-20,Exp - Purchase Of Goods/Services - Contractors,Data Architecture,LA International,179093,"3,524.22", Information Management Services,SME,Programme Expenditure
UK Statistics Authority,Office for National Statistics,17-Mar-20,Exp - Purchase Of Goods/Services - Contractors,Tech Delivery Legacy SP,LA International,179093,"17,621.10", Information Management Services,SME,Programme Expenditure
UK Statistics Authority,Office for National Statistics,17-Mar-20,Exp - Purchase Of Goods/Services - Contractors,IT Applications,LA International,179093,"8,919.76", Information Management Services,SME,Programme Expenditure
UK Statistics Authority,Office for National Statistics,17-Mar-20,Exp - Purchase Of Goods/Services - Contractors,Digital Delivery,LA International,179093,"10,764.90", Information Management Services,SME,Programme Expenditure
UK Statistics Authority,Office for National Statistics,17-Mar-20,Exp - Purchase Of Goods/Services - Contractors,Digital Delivery,LA International,179093,"1,794.17", Information Management Services,SME,Programme Expenditure
UK Statistics Authority,Office for National Statistics,17-Mar-20,"ICT Outsourcing, Maintenance And Support",IT Operations,CTS (Cloud Technology Solutions Ltd),179097,"259,200.00", Google Cloud Services,Large,Programme Expenditure
UK Statistics Authority,Office for National Statistics,17-Mar-20,"ICT Outsourcing, Maintenance And Support",IT Operations,CTS (Cloud Technology Solutions Ltd),179097,"23,827.16", Google Cloud Services,Large,Programme Expenditure
UK Statistics Authority,Office for National Statistics,17-Mar-20,Exp - Purchase Of Goods/Services - Contractors,Testing,Methods Business & Digital Technology Ltd,179101,"13,500.00", Information Management Services,Large,Programme Expenditure
UK Statistics Authority,Office for National Statistics,18-Mar-20,Exp - Purchase Of Goods/Services - Contractors,International Trade And Transactions,Parity Resources Limited,179123,"15,216.96", Information Management Services,Large,Programme Expenditure
UK Statistics Authority,Office for National Statistics,18-Mar-20,Exp - Purchase Of Goods/Services - Contractors,International Trade And Transactions,Parity Resources Limited,179123,"21,640.08", Information Management Services,Large,Programme Expenditure
UK Statistics Authority,Office for National Statistics,18-Mar-20,Exp - Purchase Of Goods/Services - Contractors,Business Architecture Transformation And Statistical Strategy,Parity Resources Limited,179123,513, Information Management Services,Large,Programme Expenditure
UK Statistics Authority,Office for National Statistics,18-Mar-20,Exp - Purchase Of Goods/Services - Contractors,Commercial Services,Parity Resources Limited,179123,"6,087.60", Information Management Services,Large,Programme Expenditure
UK Statistics Authority,Office for National Statistics,19-Mar-20,It (Owned) At Cost - Additions,Tech Delivery Next Gen IT And Infrastructure,SCC,179372,"10,830.30", ERP Licenses,Large,Programme Expenditure
UK Statistics Authority,Office for National Statistics,19-Mar-20,"ICT Outsourcing, Maintenance And Support",Tech Delivery Next Gen IT And Infrastructure,SCC,179372,"2,830.02", ERP Licenses,Large,Programme Expenditure
UK Statistics Authority,Office for National Statistics,19-Mar-20,IT Management And Change,Tech Delivery Next Gen IT And Infrastructure,SCC,179372,"14,364.49", ERP Licenses,Large,Programme Expenditure
UK Statistics Authority,Office for National Statistics,19-Mar-20,Travel And Subsistence,CWT Trainline,Corporate Travel Management ,179374,"40,249.06", Corporate Travel Management ,SME,Programme Expenditure
UK Statistics Authority,Office for National Statistics,20-Mar-20,Exp - Purchase Of Goods/Services - IT Contractual Services,Data Science Campus,E Synergy Solutions,179394,"34,200.00", Information Management Services,SME,Programme Expenditure
UK Statistics Authority,Office for National Statistics,20-Mar-20,It (Owned) At Cost - Additions,IT Operations,Computacenter (UK) Limited,179398,"81,359.02", Software Licenses,Large,Programme Expenditure
UK Statistics Authority,Office for National Statistics,20-Mar-20,"ICT Outsourcing, Maintenance And Support",IT Operations,Computacenter (UK) Limited,179398,"43,880.54", Software Licenses,Large,Programme Expenditure
UK Statistics Authority,Office for National Statistics,20-Mar-20,Furniture Costing >5K Fsms,Census CCS Data Collection,Gresham Office Furniture Limited,179402,"39,780.14", Smart Furniture Titchfield,SME,Programme Expenditure
UK Statistics Authority,Office for National Statistics,20-Mar-20,Furniture Costing >5K Fsms,Property Titchfield,Gresham Office Furniture Limited,179402,"31,612.14", Smart Furniture Titchfield,SME,Programme Expenditure
UK Statistics Authority,Office for National Statistics,20-Mar-20,Exp - Purchase Of Goods/Services - Accommodation & Bldng Management - Miscellaneous Minor Works,Tech Delivery Next Gen IT And Infrastructure,Gresham Office Furniture Limited,179402,"1,058.70", Smart Working Furniture,SME,Programme Expenditure
UK Statistics Authority,Office for National Statistics,20-Mar-20,Office Related Goods And Services,Divisional Strategy And Support,Gresham Office Furniture Limited,179402,144, Smart Working Furniture,SME,Programme Expenditure
UK Statistics Authority,Office for National Statistics,23-Mar-20,Surveys,Social Surveys Division,Natcen Social Research,179533,"284,883.30", Statistical Services,Large,Programme Expenditure
UK Statistics Authority,Office for National Statistics,23-Mar-20,Exp - Purchase Of Goods/Services - Incentive Payments,Survey Management,Park Retail Ltd,179534,"18,726.41", Survey Incentives,Large,Programme Expenditure
UK Statistics Authority,Office for National Statistics,23-Mar-20,Exp - Purchase Of Goods/Services - Incentive Payments,Survey Management,Park Retail Ltd,179534,"6,240.67", Survey Incentives,Large,Programme Expenditure
UK Statistics Authority,Office for National Statistics,23-Mar-20,Exp - Purchase Of Goods/Services - Incentive Payments,Survey Management,Park Retail Ltd,179534,"2,739.41", Survey Incentives,Large,Programme Expenditure
UK Statistics Authority,Office for National Statistics,23-Mar-20,Exp - Purchase Of Goods/Services - Incentive Payments,Survey Management,Park Retail Ltd,179534,"1,712.13", Survey Incentives,Large,Programme Expenditure
UK Statistics Authority,Office for National Statistics,23-Mar-20,Exp - Purchase Of Goods/Services - Other Facilities Costs,PBS Leadership,Tandem Property Asset Management LLP - DG Lease Limited Service Charge Account,179549,"53,369.20", Drummond Gate Service Charge,Large,Programme Expenditure
UK Statistics Authority,Office for National Statistics,23-Mar-20,Exp - Short-Term Contract & Agency Staff - Full Cost,Recruitment ,Parity Resources Limited,179550,758.64, Information Management Services,Large,Programme Expenditure
UK Statistics Authority,Office for National Statistics,23-Mar-20,Exp - Purchase Of Goods/Services - Contractors,IT Applications,Parity Resources Limited,179550,"2,307.00", Information Management Services,Large,Programme Expenditure
UK Statistics Authority,Office for National Statistics,23-Mar-20,Exp - Purchase Of Goods/Services - Contractors,Digital Delivery,Parity Resources Limited,179550,"3,588.48", Information Management Services,Large,Programme Expenditure
UK Statistics Authority,Office for National Statistics,23-Mar-20,Exp - Purchase Of Goods/Services - Contractors,Digital Delivery,Parity Resources Limited,179550,"3,588.48", Information Management Services,Large,Programme Expenditure
UK Statistics Authority,Office for National Statistics,23-Mar-20,Exp - Purchase Of Goods/Services - Contractors,Interviewer Support,Parity Resources Limited,179550,"26,111.28", Information Management Services,Large,Programme Expenditure
UK Statistics Authority,Office for National Statistics,23-Mar-20,Exp - Purchase Of Goods/Services - Contractors,Interviewer Support,Parity Resources Limited,179550,"8,891.10", Information Management Services,Large,Programme Expenditure
UK Statistics Authority,Office for National Statistics,23-Mar-20,Exp - Purchase Of Goods/Services - Contractors,Tech Delivery Data As A Platform,Talent International,179553,"14,376.00", Information Management Services,Large,Programme Expenditure
UK Statistics Authority,Office for National Statistics,23-Mar-20,Exp - Purchase Of Goods/Services - Contractors,Tech Delivery Next Gen IT And Infrastructure,Talent International,179553,"10,348.51", Information Management Services,Large,Programme Expenditure
UK Statistics Authority,Office for National Statistics,23-Mar-20,Exp - Purchase Of Goods/Services - Contractors,Digital Delivery,Talent International,179553,"12,096.00", Information Management Services,Large,Programme Expenditure
UK Statistics Authority,Office for National Statistics,24-Mar-20,Exp - Purchase Of Goods/Services - IT Contractual Services,Digital Publishing,E Synergy Solutions,179748,"12,000.00", Information Management Services,SME,Programme Expenditure
UK Statistics Authority,Office for National Statistics,24-Mar-20,Exp - Purchase Of Goods/Services - Contractors Overtime,Tech Delivery Next Gen IT And Infrastructure,E Synergy Solutions,179748,"6,243.76", Information Management Services,SME,Programme Expenditure
UK Statistics Authority,Office for National Statistics,24-Mar-20,Exp - Purchase Of Goods/Services - IT Contractual Services,Tech Delivery Next Gen IT And Infrastructure,E Synergy Solutions,179748,"38,220.00", Information Management Services,SME,Programme Expenditure
UK Statistics Authority,Office for National Statistics,24-Mar-20,Exp - Permanent Uk Staff - PRP Voucher Payments,ONS Corporate Funds,Park Retail Ltd,179750,"13,458.75", Performance Reward Vouchers,Large,Programme Expenditure
UK Statistics Authority,Office for National Statistics,24-Mar-20,Exp - Purchase Of Goods/Services - Incentive Payments,Survey Management,Park Retail Ltd,179750,"19,724.07", Survey Incentives,Large,Programme Expenditure
UK Statistics Authority,Office for National Statistics,24-Mar-20,Major Works Over 25K,Property Newport,Vinci Construction UK Limited,179752,"12,960.00", Major Works Newport,Large,Programme Expenditure
UK Statistics Authority,Office for National Statistics,24-Mar-20,Capital Major Works >25K,Property Christchurch,Vinci Construction UK Limited,179752,"38,976.00", Major Works Christchurch,Large,Programme Expenditure
UK Statistics Authority,Office for National Statistics,24-Mar-20,Other Goods And Services,Property Christchurch,Vinci Construction UK Limited,179752,"165,899.80", Major Works Newport,Large,Programme Expenditure
UK Statistics Authority,Office for National Statistics,24-Mar-20,Exp - Permanent Uk Staff - Fast Stream Costs,Programme Delivery,Cabinet Office,179760,"55,780.00", Recruitment Services,Large,Programme Expenditure
UK Statistics Authority,Office for National Statistics,25-Mar-20,Exp - Purchase Of Goods/Services - IT Contractual Services,Tech Delivery Legacy SP,IBM United Kingdom Ltd,179770,"49,378.53", Information Management Services,Large,Programme Expenditure
UK Statistics Authority,Office for National Statistics,25-Mar-20,Exp - Purchase Of Goods/Services - Contractor Travel,Tech Delivery Legacy SP,IBM United Kingdom Ltd,179770,"5,207.45", Information Management Services,Large,Programme Expenditure
UK Statistics Authority,Office for National Statistics,25-Mar-20,Exp - Purchase Of Goods/Services - IT Contractual Services,Tech Delivery Legacy SP,IBM United Kingdom Ltd,179772,"46,553.06", Information Management Services,Large,Programme Expenditure
UK Statistics Authority,Office for National Statistics,25-Mar-20,Exp - Purchase Of Goods/Services - Contractor Travel,Tech Delivery Legacy SP,IBM United Kingdom Ltd,179772,"3,108.79", Information Management Services,Large,Programme Expenditure
UK Statistics Authority,Office for National Statistics,25-Mar-20,Exp - Purchase Of Goods/Services - Contractors,Testing,LA International,179776,"9,394.20", Information Management Services,SME,Programme Expenditure
UK Statistics Authority,Office for National Statistics,25-Mar-20,Exp - Purchase Of Goods/Services - Contractors,Programme Delivery,LA International,179776,"3,366.90", Information Management Services,SME,Programme Expenditure
UK Statistics Authority,Office for National Statistics,25-Mar-20,Exp - Purchase Of Goods/Services - Contractors,Data Architecture,LA International,179776,"3,524.22", Information Management Services,SME,Programme Expenditure
UK Statistics Authority,Office for National Statistics,25-Mar-20,Exp - Purchase Of Goods/Services - Contractors,Data Architecture,LA International,179776,"3,563.16", Information Management Services,SME,Programme Expenditure
UK Statistics Authority,Office for National Statistics,25-Mar-20,Exp - Purchase Of Goods/Services - Contractors,Tech Delivery Legacy SP,LA International,179776,"3,229.48", Information Management Services,SME,Programme Expenditure
UK Statistics Authority,Office for National Statistics,25-Mar-20,Exp - Purchase Of Goods/Services - Contractors,IT Applications,LA International,179776,"8,983.86", Information Management Services,SME,Programme Expenditure
UK Statistics Authority,Office for National Statistics,25-Mar-20,Exp - Purchase Of Goods/Services - Contractors,Data Science Campus,LA International,179776,"3,588.30", Information Management Services,SME,Programme Expenditure
UK Statistics Authority,Office for National Statistics,25-Mar-20,Capital Major Works >25K,Property Services,Paramount Office Interiors Ltd,179777,"301,370.33", Major Works Newport,SME,Programme Expenditure
UK Statistics Authority,Office for National Statistics,25-Mar-20,Capital Major Works >25K,Property Titchfield,Paramount Office Interiors Ltd,179777,"57,364.45", Major Works Titchfield,SME,Programme Expenditure
UK Statistics Authority,Office for National Statistics,25-Mar-20,Major Works Over 25K,Property Titchfield,Paramount Office Interiors Ltd,179777,"121,899.45", Major Works Titchfield,SME,Programme Expenditure
UK Statistics Authority,Office for National Statistics,25-Mar-20,Capital Major Works >25K,Property Christchurch,Paramount Office Interiors Ltd,179777,"190,964.54", Major Works Christchurch,SME,Programme Expenditure
UK Statistics Authority,Office for National Statistics,26-Mar-20,FM Contract Payments,Mitie Payments,Vinci Construction UK Limited,180094,"324,759.28", Major Works Newport,Large,Programme Expenditure
UK Statistics Authority,Office for National Statistics,26-Mar-20,Exp - Short-Term Contract & Agency Staff - Full Cost,Stakeholder Engagement And Comms,LA International,180100,"1,657.01", Information Management Services,SME,Programme Expenditure
UK Statistics Authority,Office for National Statistics,26-Mar-20,Exp - Purchase Of Goods/Services - Contractors,Programme Delivery,LA International,180100,"3,366.90", Information Management Services,SME,Programme Expenditure
UK Statistics Authority,Office for National Statistics,26-Mar-20,Exp - Purchase Of Goods/Services - Contractors,Sustainability And Inequalities,LA International,180100,"8,839.32", Information Management Services,SME,Programme Expenditure
UK Statistics Authority,Office for National Statistics,26-Mar-20,Exp - Purchase Of Goods/Services - Contractors,Tech Delivery SRS,LA International,180100,"3,588.30", Information Management Services,SME,Programme Expenditure
UK Statistics Authority,Office for National Statistics,26-Mar-20,Exp - Purchase Of Goods/Services - Contractors,Tech Delivery Legacy SP,LA International,180100,"3,588.30", Information Management Services,SME,Programme Expenditure
UK Statistics Authority,Office for National Statistics,26-Mar-20,Exp - Purchase Of Goods/Services - Contractors,IT Applications,LA International,180100,"3,139.80", Information Management Services,SME,Programme Expenditure
UK Statistics Authority,Office for National Statistics,26-Mar-20,Exp - Purchase Of Goods/Services - Contractors,Digital Delivery,LA International,180100,"3,588.30", Information Management Services,SME,Programme Expenditure
UK Statistics Authority,Office for National Statistics,26-Mar-20,Exp - Purchase Of Goods/Services - Contractors,Social Survey Transformation Titchfield,LA International,180100,"6,407.76", Information Management Services,SME,Programme Expenditure
UK Statistics Authority,Office for National Statistics,26-Mar-20,Capital Major Works >25K,Census CCS Data Collection,Paramount Office Interiors Ltd,180101,"272,870.38", Major Works Titchfield,SME,Programme Expenditure
UK Statistics Authority,Office for National Statistics,26-Mar-20,Major Works Over 25K,Census CCS Data Collection,Paramount Office Interiors Ltd,180101,"27,811.46", Major Works Titchfield,SME,Programme Expenditure
UK Statistics Authority,Office for National Statistics,26-Mar-20,Furniture Costing >5K Fsms,Property Newport,Gresham Office Furniture Limited,180106,"76,634.94", Smart Furniture Newport,SME,Programme Expenditure
UK Statistics Authority,Office for National Statistics,26-Mar-20,Other Goods And Services,Data Collection Service,Leidos Innovations UK Limited,180107,"1,561,998.52", Census Questionaire Management,Large,Programme Expenditure
UK Statistics Authority,Office for National Statistics,26-Mar-20,Exp - Short-Term Contract & Agency Staff - Full Cost,Beyond 2021 Research And Design,Parity Resources Limited,180108,"4,672.71", Information Management Services,Large,Programme Expenditure
UK Statistics Authority,Office for National Statistics,26-Mar-20,Exp - Purchase Of Goods/Services - Contractors,International Trade And Transactions,Parity Resources Limited,180108,50.11, Information Management Services,Large,Programme Expenditure
UK Statistics Authority,Office for National Statistics,26-Mar-20,Exp - Short-Term Contract & Agency Staff - Full Cost,Productivity Research And Professional Development,Parity Resources Limited,180108,"1,771.26", Information Management Services,Large,Programme Expenditure
UK Statistics Authority,Office for National Statistics,26-Mar-20,Exp - Short-Term Contract & Agency Staff - Full Cost,Strategy And Engagement,Parity Resources Limited,180108,"1,966.92", Information Management Services,Large,Programme Expenditure
UK Statistics Authority,Office for National Statistics,26-Mar-20,Exp - Short-Term Contract & Agency Staff - Full Cost,Migration Statistics,Parity Resources Limited,180108,"4,678.80", Information Management Services,Large,Programme Expenditure
UK Statistics Authority,Office for National Statistics,26-Mar-20,Exp - Short-Term Contract & Agency Staff - Full Cost,ASK Business Services,Parity Resources Limited,180108,"1,935.48", Information Management Services,Large,Programme Expenditure
UK Statistics Authority,Office for National Statistics,26-Mar-20,Exp - Short-Term Contract & Agency Staff - Full Cost,Recruitment ,Parity Resources Limited,180108,53.28, Information Management Services,Large,Programme Expenditure
UK Statistics Authority,Office for National Statistics,26-Mar-20,Exp - Short-Term Contract & Agency Staff - Full Cost,ONS And GSS Careers,Parity Resources Limited,180108,"2,357.65", Information Management Services,Large,Programme Expenditure
UK Statistics Authority,Office for National Statistics,26-Mar-20,Exp - Purchase Of Goods/Services - Contractors,Health Analysis And Life Events,Parity Resources Limited,180108,53.28, Information Management Services,Large,Programme Expenditure
UK Statistics Authority,Office for National Statistics,26-Mar-20,Exp - Short-Term Contract & Agency Staff - Full Cost,Office Of Chief Data And Information,Parity Resources Limited,180108,"1,585.08", Information Management Services,Large,Programme Expenditure
UK Statistics Authority,Office for National Statistics,26-Mar-20,Exp - Short-Term Contract & Agency Staff - Full Cost,Digital Delivery,Parity Resources Limited,180108,626.04, Information Management Services,Large,Programme Expenditure
UK Statistics Authority,Office for National Statistics,26-Mar-20,Exp - Short-Term Contract & Agency Staff - Full Cost,Interviewer Management TU,Parity Resources Limited,180108,"1,494.63", Information Management Services,Large,Programme Expenditure
UK Statistics Authority,Office for National Statistics,26-Mar-20,Other Goods And Services,Interviewer Management TU,Parity Resources Limited,180108,276.19, Information Management Services,Large,Programme Expenditure
UK Statistics Authority,Office for National Statistics,26-Mar-20,Exp - Short-Term Contract & Agency Staff - Full Cost,Labour Market,Parity Resources Limited,180108,"2,549.18", Information Management Services,Large,Programme Expenditure
UK Statistics Authority,Office for National Statistics,26-Mar-20,Exp - Short-Term Contract & Agency Staff - Full Cost,Labour Market,Parity Resources Limited,180108,"2,692.79", Information Management Services,Large,Programme Expenditure
UK Statistics Authority,Office for National Statistics,27-Mar-20,Telecoms,IT Operations,Crown Hosting Data Centres Limited,180116,"2,580.00", Crown Hosted Data Center,SME,Programme Expenditure
UK Statistics Authority,Office for National Statistics,27-Mar-20,IT Management And Change,IT Operations,Crown Hosting Data Centres Limited,180116,"72,228.42",Crown Hosted Data Center,SME,Programme Expenditure
UK Statistics Authority,Office for National Statistics,27-Mar-20,Exp - Purchase Of Goods/Services - Contractors Overtime,Tech Delivery Next Gen IT And Infrastructure,E Synergy Solutions,180119,680.72, Information Management Services,SME,Programme Expenditure
UK Statistics Authority,Office for National Statistics,27-Mar-20,Exp - Purchase Of Goods/Services - IT Contractual Services,Tech Delivery Next Gen IT And Infrastructure,E Synergy Solutions,180119,"32,340.00", Information Management Services,SME,Programme Expenditure
UK Statistics Authority,Office for National Statistics,27-Mar-20,Exp - Purchase Of Goods/Services - IT Contractual Services,IT Operations,E Synergy Solutions,180119,"126,030.00", Information Management Services,SME,Programme Expenditure
UK Statistics Authority,Office for National Statistics,27-Mar-20,Business Rates,Property London,Westminster City Council,180121,"781,660.10", Business Rates Drummond Gate ,Large,Programme Expenditure
UK Statistics Authority,Office for National Statistics,27-Mar-20,Capital Major Works >25K,Property Newport,Paramount Office Interiors Ltd,180128,"182,931.71", Major Works Newport,SME,Programme Expenditure
UK Statistics Authority,Office for National Statistics,27-Mar-20,Major Works Over 25K,Property Newport,Paramount Office Interiors Ltd,180128,"351,151.73", Major Works Newport,SME,Programme Expenditure
UK Statistics Authority,Office for National Statistics,27-Mar-20,Business Rates,Property Titchfield,Fareham Borough Council,180129,"412,160.00", Business Rates Titchfield,Large,Programme Expenditure
UK Statistics Authority,Office for National Statistics,27-Mar-20,"ICT Outsourcing, Maintenance And Support",People Solutions,People Asset Management Ltd,180131,"37,586.74",Health and Employee Assistance Programe Services,SME,Programme Expenditure
UK Statistics Authority,Office for National Statistics,13-Mar-20,Training & Development,ONS And GSS Careers,Coleg Gwent,30001864,"17,414.00", Training,Large,Programme Expenditure
UK Statistics Authority,Office for National Statistics,13-Mar-20,Training & Development,Ppp Operations,Coleg Gwent,30001864,"8,707.00", Training,Large,Programme Expenditure
UK Statistics Authority,Office for National Statistics,13-Mar-20,Hospitality,Interview Management Ips,Dummy Supplier Wire,30001869,"27,500.00", Conference Services,Large,Programme Expenditure
UK Statistics Authority,Office for National Statistics,18-Mar-20,Electricity,Property Titchfield,Edf Energy,30001877,"26,894.94", Electricity Charges Titchfield,Large,Programme Expenditure
UK Statistics Authority,Office for National Statistics,18-Mar-20,Electricity,Property Newport,Edf Energy,30001878,"31,121.96", Electricity Charges Newport,Large,Programme Expenditure
UK Statistics Authority,Office for National Statistics,30-Mar-20,Rent Payable,Property London,James Andrew RSW Ltd,30001895,"486,864.00", Drummond Gate Rent,SME,Programme Expenditure
UK Statistics Authority,Office for National Statistics,31-Mar-20,Other Goods And Services,Census CCS Data Collection,Adecco UK Limited,30001899,"1,481,827.20", Census People Services ,SME,Programme Expenditure
UK Statistics Authority,Office for National Statistics,31-Mar-20,Other Goods And Services,Census CCS Data Collection,Adecco UK Limited,30001900,"752,250.00", Census People Services ,SME,Programme Expenditure
UK Statistics Authority,Office for National Statistics,31-Mar-20,Other Goods And Services,Interviewer Support,Burlington Uniforms Ltd,30001902,"69,918.00", Field Uniforms,SME,Programme Expenditure
UK Statistics Authority,Office for National Statistics,31-Mar-20,It (Owned) At Cost - Additions,IT Operations,Centerprise International Ltd,30001904,"144,864.00", Laptops and Peripherals ,Large,Programme Expenditure
UK Statistics Authority,Office for National Statistics,31-Mar-20,Rent Payable,Property London,Tandem Property Asset Management LLP (Rent),30001905,"243,432.00", Drummond Gate Rent,Large,Programme Expenditure
UK Statistics Authority,Office for National Statistics,31-Mar-20,FM Contract Payments,Mitie Payments,Vinci Construction UK Limited,30001907,"59,286.80", Major Works Newport,Large,Programme Expenditure
UK Statistics Authority,Office for National Statistics,31-Mar-20,FM Contract Payments,Mitie Payments,Vinci Construction UK Limited,30001908,"283,206.64", Major Works Newport,Large,Programme Expenditure
UK Statistics Authority,Office for National Statistics,31-Mar-20,FM Contract Payments,Mitie Payments,Vinci Construction UK Limited,30001909,"38,642.23", Major Works Newport,Large,Programme Expenditure
UK Statistics Authority,Office for National Statistics,31-Mar-20,FM Contract Payments,Mitie Payments,Vinci Construction UK Limited,30001910,"143,953.62", Major Works Newport,Large,Programme Expenditure
UK Statistics Authority,Office for National Statistics,31-Mar-20,Capital Major Works >25K,Property Services,Vinci Construction UK Limited,30001911,"49,725.60", Major Works Newport,Large,Programme Expenditure
UK Statistics Authority,Office for National Statistics,31-Mar-20,Exp - Purchase Of Goods/Services - Contractors,Digital Delivery,Certes Computing Ltd,30001916,"26,183.64", Information Management Services,SME,Programme Expenditure
UK Statistics Authority,Office for National Statistics,31-Mar-20,Exp - Purchase Of Goods/Services - IT Contractual Services,DST Reapportioning,Empiric Solutions Limited,30001924,"40,950.00", Information Management Services,Large,Programme Expenditure
UK Statistics Authority,Office for National Statistics,31-Mar-20,Exp - Purchase Of Goods/Services - IT Contractual Services,IT Applications,Empiric Solutions Limited,30001924,"18,000.00", Information Management Services,Large,Programme Expenditure
UK Statistics Authority,Office for National Statistics,31-Mar-20,Training & Development,Learning And Capability,Korn Ferry UK Limited,30001932,"42,000.00", Training,Large,Programme Expenditure
UK Statistics Authority,Office for National Statistics,31-Mar-20,Exp - Purchase Of Goods/Services - Accommodation & Bldng Management - Specialist Property Inspect,Property London,Montagu Evans,30001937,"30,000.00", Facilities Management Charges,Large,Programme Expenditure
